[Event "Late-Titled-Tuesday-Blitz-April-23-2024"]
[Site "Chess.com"]
[Date "2024.04.23"]
[Round "2"]
[White "Kiborg95"]
[Black "woodpusher52"]
[Result "1/2-1/2"]
[WhiteElo "2824"]
[BlackElo "2594"]
[TimeControl "180+1"]
[EndTime "14:18:46 PDT"]
[Termination "Game drawn by repetition"]

1. e4 {[%clk 0:02:55.8]} 1... c5 {[%clk 0:02:58.9]} 2. Nc3 {[%clk 0:02:55.9]}
2... a6 {[%clk 0:02:54.4]} 3. g3 {[%clk 0:02:48.2]} 3... b5 {[%clk 0:02:53.8]}
4. Bg2 {[%clk 0:02:48.8]} 4... Bb7 {[%clk 0:02:54.5]} 5. Nh3 {[%clk 0:02:48.2]}
5... h5 {[%clk 0:02:52.1]} 6. O-O {[%clk 0:02:47.6]} 6... h4 {[%clk 0:02:51.9]}
7. g4 {[%clk 0:02:48.2]} 7... e6 {[%clk 0:02:44.7]} 8. d3 {[%clk 0:02:48.1]}
8... Nc6 {[%clk 0:02:43.7]} 9. f4 {[%clk 0:02:48.1]} 9... Qc7 {[%clk 0:02:41.5]}
10. a4 {[%clk 0:02:38.8]} 10... b4 {[%clk 0:02:41.3]} 11. Ne2 {[%clk 0:02:38.1]}
11... Nf6 {[%clk 0:02:38.5]} 12. g5 {[%clk 0:02:37.5]} 12... Nh5 {[%clk
0:02:15.4]} 13. c3 {[%clk 0:02:34.6]} 13... a5 {[%clk 0:02:14.4]} 14. Be3 {[%clk
0:02:32]} 14... d6 {[%clk 0:02:10.9]} 15. d4 {[%clk 0:02:28.4]} 15... Be7 {[%clk
0:01:53.2]} 16. d5 {[%clk 0:02:20.6]} 16... exd5 {[%clk 0:01:54.1]} 17. exd5
{[%clk 0:02:21.5]} 17... Na7 {[%clk 0:01:50]} 18. Rc1 {[%clk 0:02:15.5]} 18...
g6 {[%clk 0:01:42.2]} 19. f5 {[%clk 0:02:08.5]} 19... gxf5 {[%clk 0:01:37.8]}
20. Rxf5 {[%clk 0:02:09.4]} 20... Bc8 {[%clk 0:01:38.1]} 21. Rf2 {[%clk
0:02:03.2]} 21... Bg4 {[%clk 0:01:37.2]} 22. Qf1 {[%clk 0:01:43.6]} 22... Qd7
{[%clk 0:01:28.3]} 23. Kh1 {[%clk 0:01:16.7]} 23... Rf8 {[%clk 0:01:14.4]} 24.
Nef4 {[%clk 0:01:08]} 24... O-O-O {[%clk 0:01:03]} 25. cxb4 {[%clk 0:01:01.3]}
25... axb4 {[%clk 0:01:02.4]} 26. Nxh5 {[%clk 0:00:49.7]} 26... Bxh5 {[%clk
0:01:03.3]} 27. Nf4 {[%clk 0:00:50.2]} 27... Bg4 {[%clk 0:01:02.7]} 28. h3
{[%clk 0:00:50.8]} 28... Bf5 {[%clk 0:01:02.5]} 29. Nd3 {[%clk 0:00:48.4]} 29...
Bxd3 {[%clk 0:00:46.3]} 30. Qxd3 {[%clk 0:00:49.3]} 30... Kb8 {[%clk 0:00:45.8]}
31. b3 {[%clk 0:00:32.2]} 31... Qc7 {[%clk 0:00:32.7]} 32. Rcf1 {[%clk
0:00:29.1]} 32... Rg8 {[%clk 0:00:19.4]} 33. Rxf7 {[%clk 0:00:27.4]} 33... Nc8
{[%clk 0:00:19]} 34. g6 {[%clk 0:00:24.7]} 34... Qd7 {[%clk 0:00:17.2]} 35. g7
{[%clk 0:00:21.5]} 35... Qe8 {[%clk 0:00:17]} 36. Qh7 {[%clk 0:00:20.1]} 36...
Nb6 {[%clk 0:00:16.6]} 37. Bh6 {[%clk 0:00:16.9]} 37... Nd7 {[%clk 0:00:16.7]}
38. Rf8 {[%clk 0:00:09.9]} 38... Rxf8 {[%clk 0:00:14]} 39. gxf8=Q {[%clk
0:00:09.8]} 39... Nxf8 {[%clk 0:00:14.1]} 40. Qg8 {[%clk 0:00:05.6]} 40... Nd7
{[%clk 0:00:12.2]} 41. Qg4 {[%clk 0:00:05]} 41... Ne5 {[%clk 0:00:11.4]} 42. Qe2
{[%clk 0:00:05.2]} 42... Qg6 {[%clk 0:00:09.6]} 43. Bf4 {[%clk 0:00:05.5]} 43...
Bf6 {[%clk 0:00:09.1]} 44. Qb5+ {[%clk 0:00:05.9]} 44... Kc7 {[%clk 0:00:08.8]}
45. Bxe5 {[%clk 0:00:05.5]} 45... Bxe5 {[%clk 0:00:09.7]} 46. Qc6+ {[%clk
0:00:05.9]} 46... Kb8 {[%clk 0:00:10.4]} 47. a5 {[%clk 0:00:06.2]} 47... Qg3
{[%clk 0:00:10]} 48. Qb6+ {[%clk 0:00:05.3]} 48... Ka8 {[%clk 0:00:08]} 49. Qc6+
{[%clk 0:00:06]} 49... Kb8 {[%clk 0:00:08.3]} 50. Qb6+ {[%clk 0:00:06.7]} 50...
Kc8 {[%clk 0:00:09]} 51. Qc6+ {[%clk 0:00:07]} 51... Kb8 {[%clk 0:00:09.7]}
1/2-1/2

[Event "Late-Titled-Tuesday-Blitz-April-23-2024"]
[Site "Chess.com"]
[Date "2024.04.23"]
[Round "2"]
[White "alexrustemov"]
[Black "SerGo055"]
[Result "1-0"]
[WhiteElo "2843"]
[BlackElo "2594"]
[TimeControl "180+1"]
[EndTime "14:18:47 PDT"]
[Termination "alexrustemov won on time"]

1. d4 {[%clk 0:03:00.9]} 1... g6 {[%clk 0:02:52]} 2. c4 {[%clk 0:03:01]} 2...
Bg7 {[%clk 0:02:52.1]} 3. Nf3 {[%clk 0:03:01.3]} 3... e6 {[%clk 0:02:51.7]} 4.
b3 {[%clk 0:02:53.7]} 4... d5 {[%clk 0:02:51]} 5. Bb2 {[%clk 0:02:52.7]} 5...
Ne7 {[%clk 0:02:50.9]} 6. e3 {[%clk 0:02:52.5]} 6... O-O {[%clk 0:02:50.8]} 7.
Be2 {[%clk 0:02:50.4]} 7... Nbc6 {[%clk 0:02:50.6]} 8. O-O {[%clk 0:02:49.4]}
8... a5 {[%clk 0:02:41.9]} 9. a3 {[%clk 0:02:48]} 9... b6 {[%clk 0:02:40.3]} 10.
Nbd2 {[%clk 0:02:48.1]} 10... Bb7 {[%clk 0:02:40.4]} 11. Qc2 {[%clk 0:02:47.9]}
11... Nf5 {[%clk 0:02:29.8]} 12. Rac1 {[%clk 0:02:46.4]} 12... Rc8 {[%clk
0:02:27.1]} 13. Rfd1 {[%clk 0:02:45.7]} 13... h5 {[%clk 0:02:24.8]} 14. Bc3
{[%clk 0:02:40.6]} 14... Bh6 {[%clk 0:02:23.5]} 15. b4 {[%clk 0:02:36.4]} 15...
axb4 {[%clk 0:02:20]} 16. axb4 {[%clk 0:02:37.3]} 16... g5 {[%clk 0:02:05.1]}
17. c5 {[%clk 0:02:27]} 17... bxc5 {[%clk 0:02:00.5]} 18. dxc5 {[%clk
0:02:22.2]} 18... g4 {[%clk 0:01:59.2]} 19. Ne5 {[%clk 0:02:19.9]} 19... d4
{[%clk 0:01:48.6]} 20. Nxc6 {[%clk 0:02:08.7]} 20... Bxc6 {[%clk 0:01:39]} 21.
Ne4 {[%clk 0:02:05]} 21... Bxe3 {[%clk 0:01:13.1]} 22. fxe3 {[%clk 0:01:51.5]}
22... Nxe3 {[%clk 0:01:13.1]} 23. Qb1 {[%clk 0:01:47.1]} 23... Nxd1 {[%clk
0:00:31.4]} 24. Rxd1 {[%clk 0:01:48]} 24... f5 {[%clk 0:00:24.6]} 25. Nf2 {[%clk
0:00:57.8]} 25... Qd5 {[%clk 0:00:23]} 26. Bf1 {[%clk 0:00:57.4]} 26... e5
{[%clk 0:00:22.8]} 27. b5 {[%clk 0:00:52.8]} 27... Rb8 {[%clk 0:00:18.5]} 28.
Qc1 {[%clk 0:00:50.9]} 28... Be8 {[%clk 0:00:15]} 29. Bb2 {[%clk 0:00:40.4]}
29... Kh7 {[%clk 0:00:11.8]} 30. c6 {[%clk 0:00:39.7]} 30... Bg6 {[%clk
0:00:11.4]} 31. Bc4 {[%clk 0:00:31.2]} 31... Qd8 {[%clk 0:00:11.5]} 32. Nd3
{[%clk 0:00:29.5]} 32... Qf6 {[%clk 0:00:07]} 33. Nc5 {[%clk 0:00:28.8]} 33...
Rfd8 {[%clk 0:00:04.4]} 34. Nd7 {[%clk 0:00:29.1]} 34... Rxd7 {[%clk 0:00:04.6]}
35. cxd7 {[%clk 0:00:29.3]} 35... Rd8 {[%clk 0:00:05.5]} 36. Bf1 {[%clk
0:00:20.4]} 36... Rxd7 {[%clk 0:00:05.8]} 37. Qc5 {[%clk 0:00:20.5]} 37... Re7
{[%clk 0:00:04.9]} 38. Re1 {[%clk 0:00:20.3]} 38... h4 {[%clk 0:00:04.8]} 39.
Bxd4 {[%clk 0:00:19.9]} 39... g3 {[%clk 0:00:03.3]} 40. h3 {[%clk 0:00:18.3]}
40... f4 {[%clk 0:00:02.5]} 41. Rxe5 {[%clk 0:00:17.5]} 41... Rf7 {[%clk
0:00:02.3]} 42. Rh5+ {[%clk 0:00:16.2]} 42... Bxh5 {[%clk 0:00:02.6]} 43. Qxh5+
{[%clk 0:00:15.9]} 43... Qh6 {[%clk 0:00:02.3]} 44. Qxf7+ {[%clk 0:00:15.5]} 1-0

[Event "Late-Titled-Tuesday-Blitz-April-23-2024"]
[Site "Chess.com"]
[Date "2024.04.23"]
[Round "2"]
[White "ilushka"]
[Black "carokannlover213"]
[Result "0-1"]
[WhiteElo "2549"]
[BlackElo "2788"]
[TimeControl "180+1"]
[EndTime "14:18:48 PDT"]
[Termination "carokannlover213 won on time"]

1. Nf3 {[%clk 0:03:00.9]} 1... Nf6 {[%clk 0:02:59.3]} 2. g3 {[%clk 0:03:01.4]}
2... b6 {[%clk 0:02:58]} 3. Bg2 {[%clk 0:03:00.9]} 3... Bb7 {[%clk 0:02:58.6]}
4. c4 {[%clk 0:03:01.5]} 4... g6 {[%clk 0:02:56.6]} 5. b3 {[%clk 0:03:02]} 5...
Bg7 {[%clk 0:02:56.9]} 6. Bb2 {[%clk 0:03:02.6]} 6... O-O {[%clk 0:02:57.6]} 7.
O-O {[%clk 0:03:03.1]} 7... c5 {[%clk 0:02:51.9]} 8. d4 {[%clk 0:03:03.1]} 8...
cxd4 {[%clk 0:02:50.8]} 9. Qxd4 {[%clk 0:03:04]} 9... Nc6 {[%clk 0:02:49.6]} 10.
Qf4 {[%clk 0:03:03.6]} 10... Qb8 {[%clk 0:02:25.7]} 11. Rd1 {[%clk 0:02:58.5]}
11... Qxf4 {[%clk 0:02:23.5]} 12. gxf4 {[%clk 0:02:59.4]} 12... Nb4 {[%clk
0:02:09.5]} 13. Nc3 {[%clk 0:02:49.2]} 13... Ne4 {[%clk 0:01:55]} 14. Ne5 {[%clk
0:02:20.6]} 14... Nxc3 {[%clk 0:00:47.3]} 15. Bxc3 {[%clk 0:02:19.9]} 15... Bxg2
{[%clk 0:00:35.7]} 16. Bxb4 {[%clk 0:02:19.9]} 16... d6 {[%clk 0:00:34.6]} 17.
Kxg2 {[%clk 0:02:01.4]} 17... dxe5 {[%clk 0:00:34.7]} 18. fxe5 {[%clk
0:01:45.7]} 18... Bxe5 {[%clk 0:00:33.8]} 19. Rac1 {[%clk 0:01:45.9]} 19... Bf6
{[%clk 0:00:21.4]} 20. Rd7 {[%clk 0:01:45.5]} 20... Rfe8 {[%clk 0:00:16.3]} 21.
Rcd1 {[%clk 0:00:28.2]} 21... a5 {[%clk 0:00:16]} 22. Ba3 {[%clk 0:00:24.3]}
22... a4 {[%clk 0:00:16.3]} 23. Bb4 {[%clk 0:00:24.8]} 23... axb3 {[%clk
0:00:15.6]} 24. axb3 {[%clk 0:00:25.7]} 24... Ra2 {[%clk 0:00:14.4]} 25. Kf3
{[%clk 0:00:25.1]} 25... Rb2 {[%clk 0:00:13.8]} 26. R1d3 {[%clk 0:00:23]} 26...
e5 {[%clk 0:00:13.4]} 27. e4 {[%clk 0:00:16.9]} 27... Bh4 {[%clk 0:00:13.5]} 28.
Bd2 {[%clk 0:00:15.5]} 28... f5 {[%clk 0:00:13.6]} 29. Be3 {[%clk 0:00:14.3]}
29... Rf8 {[%clk 0:00:11.2]} 30. Bxb6 {[%clk 0:00:03.4]} 30... fxe4+ {[%clk
0:00:04.5]} 31. Kxe4 {[%clk 0:00:04.3]} 31... Re2+ {[%clk 0:00:03.1]} 32. Kd5
{[%clk 0:00:04.1]} 32... e4 {[%clk 0:00:02.8]} 33. Re3 {[%clk 0:00:03.7]} 33...
Rd2+ {[%clk 0:00:03.3]} 34. Kc6 {[%clk 0:00:03.4]} 34... Rf6+ {[%clk 0:00:03.9]}
35. Kc7 {[%clk 0:00:01.7]} 35... Rxd7+ {[%clk 0:00:03.7]} 36. Kxd7 {[%clk
0:00:02.6]} 36... Rxb6 {[%clk 0:00:04]} 37. Rxe4 {[%clk 0:00:03.3]} 37... Bxf2
{[%clk 0:00:03.1]} 38. Rf4 {[%clk 0:00:01.7]} 38... Bg1 {[%clk 0:00:03.4]} 39.
Rf3 {[%clk 0:00:02.1]} 39... Bxh2 {[%clk 0:00:03.3]} 40. c5 {[%clk 0:00:02.4]}
40... Rb7+ {[%clk 0:00:02.1]} 41. Kd8 {[%clk 0:00:01.1]} 41... Bc7+ {[%clk
0:00:01.6]} 0-1

[Event "Late-Titled-Tuesday-Blitz-April-23-2024"]
[Site "Chess.com"]
[Date "2024.04.23"]
[Round "2"]
[White "AsaHoffmann"]
[Black "Alexei_Gubajdullin"]
[Result "0-1"]
[WhiteElo "2376"]
[BlackElo "2590"]
[TimeControl "180+1"]
[EndTime "14:18:54 PDT"]
[Termination "Alexei_Gubajdullin won on time"]

1. d4 {[%clk 0:02:57.1]} 1... Nf6 {[%clk 0:02:58.7]} 2. Bg5 {[%clk 0:02:56.2]}
2... g6 {[%clk 0:02:59.4]} 3. Nc3 {[%clk 0:02:55.5]} 3... Bg7 {[%clk 0:02:59.9]}
4. e4 {[%clk 0:02:55.1]} 4... d6 {[%clk 0:03:00.1]} 5. f3 {[%clk 0:02:55.2]}
5... O-O {[%clk 0:02:59.7]} 6. Qd2 {[%clk 0:02:55.2]} 6... Nc6 {[%clk 0:02:57]}
7. Nge2 {[%clk 0:02:54.9]} 7... e5 {[%clk 0:02:56.5]} 8. O-O-O {[%clk
0:02:54.2]} 8... exd4 {[%clk 0:02:55.8]} 9. Nxd4 {[%clk 0:02:54]} 9... Nxd4
{[%clk 0:02:55.7]} 10. Qxd4 {[%clk 0:02:53.9]} 10... h6 {[%clk 0:02:55.8]} 11.
Bh4 {[%clk 0:02:49.1]} 11... Re8 {[%clk 0:02:55]} 12. Qd2 {[%clk 0:02:40.8]}
12... Nxe4 {[%clk 0:02:49.8]} 13. Bxd8 {[%clk 0:02:35.4]} 13... Nxd2 {[%clk
0:02:49.3]} 14. Bxc7 {[%clk 0:02:35.3]} 14... Nxf1 {[%clk 0:02:48.2]} 15. Rhxf1
{[%clk 0:02:33.3]} 15... Bf5 {[%clk 0:02:43.2]} 16. Bxd6 {[%clk 0:02:22.7]}
16... Rac8 {[%clk 0:02:42.6]} 17. Rfe1 {[%clk 0:02:12.3]} 17... Rxe1 {[%clk
0:02:32.8]} 18. Rxe1 {[%clk 0:02:11]} 18... b5 {[%clk 0:02:31.9]} 19. g4 {[%clk
0:02:01.8]} 19... Be6 {[%clk 0:02:26]} 20. Nxb5 {[%clk 0:01:52.3]} 20... a6
{[%clk 0:02:13.7]} 21. Na3 {[%clk 0:01:35.4]} 21... Bxa2 {[%clk 0:02:09.4]} 22.
Be5 {[%clk 0:01:30.4]} 22... Bf8 {[%clk 0:02:07.6]} 23. Re3 {[%clk 0:01:22.6]}
23... Bd5 {[%clk 0:02:07.2]} 24. Rd3 {[%clk 0:01:12.6]} 24... Bb7 {[%clk
0:01:59.4]} 25. Bf6 {[%clk 0:01:11.3]} 25... g5 {[%clk 0:01:49.4]} 26. Kd2
{[%clk 0:01:08.6]} 26... Kh7 {[%clk 0:01:48.7]} 27. Bc3 {[%clk 0:01:05.2]} 27...
Kg6 {[%clk 0:01:46.3]} 28. Ke2 {[%clk 0:00:58.7]} 28... Bc5 {[%clk 0:01:45.2]}
29. Bd4 {[%clk 0:00:53.2]} 29... Bd6 {[%clk 0:01:40.8]} 30. h3 {[%clk
0:00:48.4]} 30... Bf4 {[%clk 0:01:35.6]} 31. c4 {[%clk 0:00:41.7]} 31... h5
{[%clk 0:01:30.2]} 32. Nc2 {[%clk 0:00:41.1]} 32... Rxc4 {[%clk 0:01:26.5]} 33.
Ne3 {[%clk 0:00:39.2]} 33... Rc8 {[%clk 0:01:15.9]} 34. Rb3 {[%clk 0:00:38.3]}
34... Bc6 {[%clk 0:01:14.5]} 35. Rb6 {[%clk 0:00:37.3]} 35... f6 {[%clk
0:01:14.2]} 36. Kf2 {[%clk 0:00:30.6]} 36... h4 {[%clk 0:01:10.4]} 37. Rxa6
{[%clk 0:00:28.7]} 37... Bg3+ {[%clk 0:01:01.5]} 38. Kg2 {[%clk 0:00:26.3]}
38... Kf7 {[%clk 0:00:55.2]} 39. Nf5 {[%clk 0:00:25.1]} 39... Bb8 {[%clk
0:00:53.1]} 40. Rb6 {[%clk 0:00:21.9]} 40... Ke6 {[%clk 0:00:38.3]} 41. b4
{[%clk 0:00:20.5]} 41... Kd7 {[%clk 0:00:37]} 42. b5 {[%clk 0:00:19.4]} 42...
Bd5 {[%clk 0:00:36.8]} 43. Rxf6 {[%clk 0:00:18]} 43... Rc2+ {[%clk 0:00:36]} 44.
Kf1 {[%clk 0:00:18.1]} 44... Bxf3 {[%clk 0:00:34.8]} 45. Ng7 {[%clk 0:00:15.1]}
45... Bg2+ {[%clk 0:00:33.6]} 46. Ke1 {[%clk 0:00:14.7]} 46... Bxh3 {[%clk
0:00:32.8]} 47. Rf7+ {[%clk 0:00:13.7]} 47... Kd6 {[%clk 0:00:31.1]} 48. Nf5+
{[%clk 0:00:12.4]} 48... Kd5 {[%clk 0:00:31.2]} 49. Ne3+ {[%clk 0:00:12.5]}
49... Kxd4 {[%clk 0:00:31]} 50. Nxc2+ {[%clk 0:00:12.7]} 50... Kd3 {[%clk
0:00:30.2]} 51. Nb4+ {[%clk 0:00:12.1]} 51... Kc4 {[%clk 0:00:29.9]} 52. Nc6
{[%clk 0:00:12]} 52... Bg3+ {[%clk 0:00:29.9]} 53. Ke2 {[%clk 0:00:09.2]} 53...
Kxb5 {[%clk 0:00:30]} 54. Nd4+ {[%clk 0:00:08.5]} 54... Kc4 {[%clk 0:00:30.1]}
55. Ne6 {[%clk 0:00:08.7]} 55... Bxg4+ {[%clk 0:00:30.1]} 56. Ke3 {[%clk
0:00:08.5]} 56... Bxe6 {[%clk 0:00:30.5]} 57. Rg7 {[%clk 0:00:06.5]} 57... Bf4+
{[%clk 0:00:30.5]} 58. Kf3 {[%clk 0:00:06.3]} 58... h3 {[%clk 0:00:28.8]} 0-1

[Event "Late-Titled-Tuesday-Blitz-April-23-2024"]
[Site "Chess.com"]
[Date "2024.04.23"]
[Round "2"]
[White "ElCoachRene"]
[Black "MaiqMaster"]
[Result "0-1"]
[WhiteElo "1974"]
[BlackElo "2444"]
[TimeControl "180+1"]
[EndTime "14:18:55 PDT"]
[Termination "MaiqMaster won on time"]

1. Nf3 {[%clk 0:03:00.9]} 1... Nf6 {[%clk 0:02:58.1]} 2. d4 {[%clk 0:03:01.3]}
2... d5 {[%clk 0:02:58.4]} 3. Bf4 {[%clk 0:03:01.7]} 3... g6 {[%clk 0:02:57.8]}
4. e3 {[%clk 0:03:01.9]} 4... Bg7 {[%clk 0:02:58.5]} 5. Nbd2 {[%clk 0:03:01.9]}
5... O-O {[%clk 0:02:59.1]} 6. Bd3 {[%clk 0:03:02]} 6... c5 {[%clk 0:02:59.3]}
7. c3 {[%clk 0:03:01.7]} 7... Nc6 {[%clk 0:02:58.8]} 8. O-O {[%clk 0:03:01.1]}
8... Nd7 {[%clk 0:02:59.1]} 9. Bg5 {[%clk 0:02:57.5]} 9... f6 {[%clk 0:02:54.9]}
10. Bh4 {[%clk 0:02:57.1]} 10... Qc7 {[%clk 0:02:53.4]} 11. Bg3 {[%clk
0:02:56.2]} 11... e5 {[%clk 0:02:53.3]} 12. Be2 {[%clk 0:02:23.1]} 12... Qb6
{[%clk 0:02:49.2]} 13. Qb3 {[%clk 0:02:21.7]} 13... Qxb3 {[%clk 0:02:46.5]} 14.
axb3 {[%clk 0:02:21.7]} 14... a6 {[%clk 0:02:37.6]} 15. h3 {[%clk 0:02:20.8]}
15... Re8 {[%clk 0:02:32.7]} 16. dxc5 {[%clk 0:02:18.5]} 16... Nxc5 {[%clk
0:02:31.4]} 17. b4 {[%clk 0:02:19.3]} 17... Ne6 {[%clk 0:02:27.7]} 18. b5 {[%clk
0:02:18.6]} 18... Nb8 {[%clk 0:02:23.1]} 19. Rfd1 {[%clk 0:02:13.4]} 19... Nd7
{[%clk 0:02:16.1]} 20. Ra5 {[%clk 0:01:56.2]} 20... b6 {[%clk 0:02:10.5]} 21.
Ra4 {[%clk 0:01:45.6]} 21... Ndc5 {[%clk 0:02:06.8]} 22. Ra2 {[%clk 0:01:36.9]}
22... a5 {[%clk 0:01:58.1]} 23. b4 {[%clk 0:01:36.1]} 23... Nb7 {[%clk
0:01:52.6]} 24. Nb3 {[%clk 0:01:26.9]} 24... Nc7 {[%clk 0:01:50.4]} 25. bxa5
{[%clk 0:01:22]} 25... Nxa5 {[%clk 0:01:47]} 26. Nxa5 {[%clk 0:01:18.8]} 26...
Be6 {[%clk 0:01:34.5]} 27. Rda1 {[%clk 0:01:09.8]} 27... d4 {[%clk 0:01:18]} 28.
Nc4 {[%clk 0:01:03.9]} 28... Rxa2 {[%clk 0:01:18.9]} 29. Rxa2 {[%clk 0:01:03.4]}
29... d3 {[%clk 0:01:13]} 30. Bxd3 {[%clk 0:01:01.7]} 30... e4 {[%clk
0:01:13.3]} 31. Be2 {[%clk 0:00:53.1]} 31... exf3 {[%clk 0:01:12.6]} 32. gxf3
{[%clk 0:00:53.9]} 32... Nxb5 {[%clk 0:01:12.4]} 33. Rb2 {[%clk 0:00:42.4]}
33... Nxc3 {[%clk 0:01:11.2]} 34. Bf1 {[%clk 0:00:41.1]} 34... Na4 {[%clk
0:00:47.6]} 35. Rb4 {[%clk 0:00:39]} 35... Bd7 {[%clk 0:00:38.1]} 36. Nxb6
{[%clk 0:00:37.3]} 36... Nxb6 {[%clk 0:00:38.5]} 37. Rxb6 {[%clk 0:00:37.2]}
37... h5 {[%clk 0:00:37.8]} 38. Bc4+ {[%clk 0:00:36.9]} 38... Kh7 {[%clk
0:00:36.4]} 39. Rb7 {[%clk 0:00:36.9]} 39... Bxh3 {[%clk 0:00:36]} 40. Bh4
{[%clk 0:00:31.6]} 40... g5 {[%clk 0:00:35.8]} 41. Bd3+ {[%clk 0:00:30]} 41...
Kh6 {[%clk 0:00:34.5]} 42. Bg3 {[%clk 0:00:30.1]} 42... h4 {[%clk 0:00:31.5]}
43. Bd6 {[%clk 0:00:28.8]} 43... Rd8 {[%clk 0:00:25.9]} 44. Rb6 {[%clk 0:00:26]}
44... Bd7 {[%clk 0:00:20.6]} 45. Kh2 {[%clk 0:00:25.5]} 45... Be8 {[%clk
0:00:19.3]} 46. Be4 {[%clk 0:00:23.1]} 46... Bg6 {[%clk 0:00:19.2]} 47. Be7
{[%clk 0:00:20.6]} 47... Rd2 {[%clk 0:00:14.1]} 48. Bxf6 {[%clk 0:00:16]} 48...
Bxe4 {[%clk 0:00:13.5]} 49. Bc3+ {[%clk 0:00:13.5]} 49... Kh5 {[%clk 0:00:09.1]}
50. Bxd2 {[%clk 0:00:13.9]} 50... Bxf3 {[%clk 0:00:09.7]} 51. Rb7 {[%clk
0:00:11.5]} 51... Be5+ {[%clk 0:00:09.2]} 52. Kg1 {[%clk 0:00:07.4]} 52... Bxb7
{[%clk 0:00:10.1]} 0-1

[Event "Late-Titled-Tuesday-Blitz-April-23-2024"]
[Site "Chess.com"]
[Date "2024.04.23"]
[Round "2"]
[White "Itay121"]
[Black "MarcoRiehle"]
[Result "0-1"]
[WhiteElo "2550"]
[BlackElo "2790"]
[TimeControl "180+1"]
[EndTime "14:19:02 PDT"]
[Termination "MarcoRiehle won by checkmate"]

1. Nf3 {[%clk 0:03:00.9]} 1... c5 {[%clk 0:02:59.2]} 2. g3 {[%clk 0:02:58.9]}
2... Nc6 {[%clk 0:02:56.5]} 3. Bg2 {[%clk 0:02:59.3]} 3... e5 {[%clk 0:02:56.4]}
4. d3 {[%clk 0:02:55.6]} 4... d5 {[%clk 0:02:56]} 5. O-O {[%clk 0:02:56.2]} 5...
f6 {[%clk 0:02:53.5]} 6. c4 {[%clk 0:02:56.4]} 6... Nge7 {[%clk 0:02:53.3]} 7.
cxd5 {[%clk 0:02:56]} 7... Nxd5 {[%clk 0:02:54.2]} 8. Nc3 {[%clk 0:02:56.3]}
8... Be6 {[%clk 0:02:54.7]} 9. Be3 {[%clk 0:02:56.2]} 9... Qd7 {[%clk
0:02:54.8]} 10. Nxd5 {[%clk 0:02:56.3]} 10... Bxd5 {[%clk 0:02:54.7]} 11. Nd2
{[%clk 0:02:56.9]} 11... Be6 {[%clk 0:02:47.9]} 12. Qa4 {[%clk 0:02:55]} 12...
Rc8 {[%clk 0:02:47.7]} 13. Rfc1 {[%clk 0:02:54.6]} 13... b6 {[%clk 0:02:44.7]}
14. a3 {[%clk 0:02:49.2]} 14... Be7 {[%clk 0:02:35.1]} 15. b4 {[%clk 0:02:47.8]}
15... Nd4 {[%clk 0:02:34.2]} 16. Qxd7+ {[%clk 0:02:46.3]} 16... Kxd7 {[%clk
0:02:33.7]} 17. Bxd4 {[%clk 0:02:41]} 17... cxd4 {[%clk 0:02:31.5]} 18. h4
{[%clk 0:02:31.2]} 18... Rxc1+ {[%clk 0:02:10.9]} 19. Rxc1 {[%clk 0:02:32.1]}
19... Rc8 {[%clk 0:02:09.9]} 20. Rxc8 {[%clk 0:02:24.8]} 20... Kxc8 {[%clk
0:02:10.8]} 21. Nc4 {[%clk 0:02:09.4]} 21... Kc7 {[%clk 0:02:04.7]} 22. Be4
{[%clk 0:01:59.8]} 22... h6 {[%clk 0:01:52.4]} 23. Kf1 {[%clk 0:01:54.1]} 23...
f5 {[%clk 0:01:37.4]} 24. Bg2 {[%clk 0:01:47]} 24... e4 {[%clk 0:01:36.1]} 25.
Ke1 {[%clk 0:01:40.6]} 25... Kc6 {[%clk 0:01:25.2]} 26. Ne5+ {[%clk 0:01:32.6]}
26... Kd5 {[%clk 0:01:21.5]} 27. Ng6 {[%clk 0:01:29.3]} 27... Bd6 {[%clk
0:01:18.1]} 28. Kd2 {[%clk 0:01:23.6]} 28... Bf7 {[%clk 0:01:12]} 29. Nf4+
{[%clk 0:01:19.2]} 29... Ke5 {[%clk 0:01:11.7]} 30. Bh3 {[%clk 0:01:09.1]} 30...
g5 {[%clk 0:01:07.5]} 31. hxg5 {[%clk 0:00:58.7]} 31... hxg5 {[%clk 0:01:08.4]}
32. dxe4 {[%clk 0:00:52.2]} 32... gxf4 {[%clk 0:01:07.1]} 33. gxf4+ {[%clk
0:00:37.1]} 33... Kxe4 {[%clk 0:01:05.3]} 34. Bg2+ {[%clk 0:00:30.6]} 34... Kxf4
{[%clk 0:01:04.9]} 35. Kd3 {[%clk 0:00:31.5]} 35... Ke5 {[%clk 0:01:03.2]} 36.
f4+ {[%clk 0:00:26.2]} 36... Kxf4 {[%clk 0:01:03.3]} 37. Kxd4 {[%clk 0:00:27.1]}
37... Be5+ {[%clk 0:01:00.1]} 38. Kd3 {[%clk 0:00:25.9]} 38... Kg5 {[%clk
0:00:57.5]} 39. e3 {[%clk 0:00:24.5]} 39... Kf6 {[%clk 0:00:57.3]} 40. Bf3
{[%clk 0:00:18.9]} 40... Be6 {[%clk 0:00:50.6]} 41. Bc6 {[%clk 0:00:18.7]} 41...
Ke7 {[%clk 0:00:48.8]} 42. Bf3 {[%clk 0:00:18.5]} 42... Kd6 {[%clk 0:00:49.1]}
43. Be2 {[%clk 0:00:18.9]} 43... Bd5 {[%clk 0:00:48.2]} 44. Bh5 {[%clk
0:00:18.5]} 44... Bg2 {[%clk 0:00:41.4]} 45. Kc4 {[%clk 0:00:17.7]} 45... Bf1+
{[%clk 0:00:41]} 46. Kb3 {[%clk 0:00:17.6]} 46... Bg7 {[%clk 0:00:37.8]} 47. Ka4
{[%clk 0:00:16.2]} 47... Bh6 {[%clk 0:00:37.3]} 48. Bg6 {[%clk 0:00:14.9]} 48...
Ke5 {[%clk 0:00:37.2]} 49. b5 {[%clk 0:00:09.8]} 49... Bxe3 {[%clk 0:00:36.5]}
50. Bh5 {[%clk 0:00:10]} 50... Bd3 {[%clk 0:00:35.4]} 51. Bd1 {[%clk 0:00:10.3]}
51... f4 {[%clk 0:00:35.4]} 52. Bf3 {[%clk 0:00:09.9]} 52... Bc5 {[%clk
0:00:35.1]} 53. Bd1 {[%clk 0:00:07.7]} 53... f3 {[%clk 0:00:34.1]} 54. Bb3
{[%clk 0:00:06.2]} 54... f2 {[%clk 0:00:33.1]} 55. Bc4 {[%clk 0:00:06.9]} 55...
Bc2+ {[%clk 0:00:25.1]} 56. Bb3 {[%clk 0:00:07.2]} 56... Bxb3+ {[%clk
0:00:25.7]} 57. Kxb3 {[%clk 0:00:08.1]} 57... f1=Q {[%clk 0:00:25.5]} 58. Ka4
{[%clk 0:00:09]} 58... Qc4# {[%clk 0:00:23.8]} 0-1